lending/lending_fUSD_20251107
["ID","MTS","AMOUNT","RATE_DAILY","PERIOD"]
[393355029,1762515031990,-80855.50899401,0.00018,2]
[393355032,1762515032006,-36044.05274668,0.00018,2]
[393355178,1762515037560,-37499.45108142,0.00018,2]
[393355180,1762515037572,-1641.97699232,0.00018,2]
[393355185,1762515037614,-484.45254073,0.00018,2]
[393355187,1762515037722,-25911.05844825,0.00018,2]
[393355188,1762515037735,-500.0,0.00018,2]
[393355189,1762515037777,-160053.11522549,0.00018,2]
[393355190,1762515037788,-305.37,0.00018,2]
[393355225,1762515039767,-3010.70664,0.00018,2]
[393355226,1762515039780,-10032.02199999,0.00018,2]
[393355227,1762515039794,-250.0,0.00018,2]
[393355228,1762515039811,-4387.4796,0.00018,2]
[393355229,1762515039826,-1038.98552268,0.00018,2]
[393355230,1762515040012,-1181.20308806,0.00018,2]
[393355232,1762515040037,-440195.01831547,0.00018,2]
[393355237,1762515040072,-77054.20099095,0.00018,2]
[393355239,1762515040085,-6502.71700178,0.00018,2]
[393355241,1762515040099,-2603.62516926,0.00018,2]
[393355244,1762515040113,-2918.65854759,0.00018,2]
[393355246,1762515040130,-1128.26844074,0.00018,2]
[393355249,1762515040145,-1367.59,0.00018,2]
[393355251,1762515040171,-430.62277423,0.00018,2]
[393355296,1762515042700,-247.883653,0.0001791,2]
[393355299,1762515042711,-1975.60859205,0.00018,2]
[393355321,1762515042805,-1162.41995856,0.00018,2]
[393355325,1762515042818,-21217.57185037,0.00018,2]
[393355346,1762515042918,-291.00838248,0.00018,2]
[393355351,1762515042936,-293.33280002,0.00018,2]
[393355542,1762515045857,-832.907075,0.00018,2]
[393355543,1762515045993,-2155.25822821,0.00018,2]
[393355544,1762515046007,-6045.0,0.00018,2]
[393355545,1762515046100,-51016.93768432,0.00018,2]
[393355546,1762515046113,-11448.0,0.00018,2]
[393355547,1762515046161,-272.26249633,0.00018,2]
[393355548,1762515046184,-17020.27195463,0.00018,2]
[393355549,1762515046214,-121103.30500318,0.00018,2]
[393355550,1762515046232,-59123.804,0.00018,2]
[393355551,1762515046248,-162715.48039803,0.00018,2]
[393355552,1762515046263,-29415.62555829,0.00018,2]
[393355553,1762515046277,-21605.12295052,0.00018,2]
[393355554,1762515046291,-34833.26764827,0.00018,2]
[393355555,1762515046304,-19962.31227866,0.00018,2]
[393355556,1762515046373,-10001.71037,0.00018,2]
[393355579,1762515125259,365.75655203,0.00038716,120]
[393355580,1762515585428,175.48706705,0.00030136,120]
[393355581,1762515837198,30000.0,0.00030137,120]
[393355583,1762516087127,999.0,0.00017056,3]
[393355602,1762516231756,-502.99999997,0.00016438,2]
[393355604,1762516231768,-727.65809693,0.00016438,2]
[393355606,1762516231779,-98.0519031,0.00016438,2]
[393355607,1762516231788,-194.78,0.00016712,2]
[393355609,1762516231798,-166.66,0.00016821,2]
[393355610,1762516231808,-35.10552867,0.000169,2]
[393355627,1762516232225,-400.13607133,0.000169,2]
[393355629,1762516232234,-189.27520268,0.00017,2]
[393355631,1762516232245,-60.72479732,0.00017,2]
[393355633,1762516232254,-894.31861532,0.00017024,2]
[393355671,1762516237722,-1240.12510115,0.00017024,2]
[393355676,1762516237774,-616.55628353,0.00017024,2]
[393355677,1762516237785,-166.66,0.00017175,2]
[393355678,1762516237795,-200.0,0.00017258,2]
[393355679,1762516237805,-237.4,0.00017281,2]
[393355680,1762516237815,-200.0,0.00017292,2]
[393355681,1762516237825,-150.0,0.00017343,2]
[393355682,1762516237836,-166.66,0.00017529,2]
[393355683,1762516237850,-1200.0,0.00017817,2]
[393355684,1762516237860,-1200.0,0.00017818,2]
[393355685,1762516237870,-300.0,0.00017818,2]
[393355686,1762516237880,-500.0,0.00017829,2]
[393355687,1762516237889,-599.65222191,0.00017829,2]
[393355688,1762516237899,-500.0,0.00017829,2]
[393355689,1762516237913,-74393.07149461,0.0001783,2]
[393355690,1762516237925,-500.0,0.0001783,2]
[393355691,1762516237936,-300.0,0.0001783,2]
[393355692,1762516237948,-4712.18461572,0.0001783,2]
[393355693,1762516237959,-504.45142383,0.0001783,2]
[393355694,1762516237974,-939.23805153,0.0001783,2]
[393355755,1762516239768,-1486.19280872,0.0001783,2]
[393355756,1762516239781,-866.31182605,0.0001783,2]
[393355757,1762516239822,-1849.49800974,0.0001783,2]
[393355758,1762516239876,-501.6276434,0.0001783,2]
[393355759,1762516239931,-296.16242959,0.0001783,2]
[393355760,1762516239943,-311.41144828,0.0001783,2]
[393355761,1762516239955,-1892.07694244,0.0001783,2]
[393355762,1762516239971,-2718.43077279,0.0001783,2]
[393355763,1762516240036,-3426.55600916,0.0001783,2]
[393355808,1762516242914,-501.44460791,0.00017829,2]
[393355810,1762516242926,-20115.49427609,0.0001783,2]
[393355813,1762516242943,-208.4299984,0.00017873,2]
[393355815,1762516242956,-166.66,0.00017883,2]
[393355817,1762516242968,-151.0,0.00017889,2]
[393355820,1762516242980,-151.0,0.00017889,2]
[393355822,1762516242992,-151.0,0.00017889,2]
[393355824,1762516243004,-248.34894286,0.00017889,2]
[393355827,1762516243016,-12343.6280284,0.00017897,2]
[393355829,1762516243028,-9991.1379,0.000179,2]
[393355831,1762516243040,-313.40677797,0.000179,2]
[393355833,1762516243051,-416.29966363,0.000179,2]
[393355836,1762516243064,-269.52066072,0.00017973,2]
[393355838,1762516243075,-611.11938114,0.00017973,2]
[393355840,1762516243087,-500.0,0.00017973,2]
[393355842,1762516243099,-500.0,0.00017973,2]
[393355845,1762516243110,-501.40957897,0.00017973,2]
[393355847,1762516243123,-500.0,0.00017973,2]
[393355849,1762516243135,-500.0,0.00017973,2]
[393355852,1762516243146,-183.63983714,0.00017973,2]
[393355854,1762516243157,-500.0,0.00017973,2]
[393355856,1762516243171,-500.0,0.00017973,2]
[393355860,1762516243184,-500.0,0.00017973,2]
[393355862,1762516243195,-669.27727851,0.00017982,2]
[393355864,1762516243207,-151.0,0.00017994,2]
[393355867,1762516243218,-550.0,0.00017996,2]
[393355869,1762516243228,-208.996,0.00017997,2]
[393355871,1762516243238,-5076.849,0.00017997,2]
[393355873,1762516243249,-578.5,0.00017999,2]
[393355875,1762516243260,-472.7124189,0.00017999,2]
[393355878,1762516243273,-500.0,0.00017999,2]
[393355880,1762516243286,-500.0,0.00017999,2]
[393355882,1762516243296,-500.0,0.00017999,2]
[393355884,1762516243306,-500.0,0.00017999,2]
[393355887,1762516243316,-500.0,0.00017999,2]
[393355889,1762516243327,-158.25209266,0.00017999,2]
[393355891,1762516243338,-197.52622172,0.00017999,2]
[393355893,1762516243350,-500.0,0.00017999,2]
[393355896,1762516243364,-504.82836893,0.00017999,2]
[393355898,1762516243378,-500.0,0.00017999,2]
[393355900,1762516243389,-500.0,0.00017999,2]
[393355902,1762516243400,-138307.59476398,0.00018,2]
[393356003,1762516246088,-617.40733599,0.00018,2]
[393356004,1762516246192,-846.31204109,0.00018,2]
[393356005,1762516246246,-40052.0,0.00018,2]
[393356006,1762516246259,-2030.07934693,0.00018,2]
[393356007,1762516246305,-424060.30249218,0.00018,2]
[393356008,1762516246319,-1001.27,0.00018,2]
[393356027,1762516833980,-197.92,0.00017298,2]
[393356028,1762516834009,-237.1044024,0.00017337,2]
[393356029,1762516834071,-180.07142982,0.00017337,2]
[393356030,1762516876635,632.64,0.00013699,2]
[393356033,1762517142031,-300.00138325,0.00016915,2]
[393356035,1762517311771,159.61,8.66e-05,2]
[393356036,1762517312874,159.61,9.254e-05,2]
[393356037,1762517313076,159.61,9.849e-05,2]
[393356038,1762517313461,159.61,0.00010443,2]
[393356039,1762517313665,159.61,0.00011037,2]
[393356040,1762517313863,159.61,0.00011631,2]
[393356041,1762517314067,159.61,0.00012226,2]
[393356042,1762517314293,159.61,0.0001282,2]
[393356043,1762517314488,159.61,0.00013414,2]
[393356044,1762517314892,159.61,0.00014009,2]
[393356045,1762517315088,159.61,0.00014603,2]
[393356046,1762517372861,500.0,0.00038785,120]
[393356047,1762517372925,500.0,0.00038785,120]
[393356048,1762517373154,500.0,0.00038785,120]
[393356049,1762517373416,500.0,0.00038785,120]
[393356050,1762517373687,500.0,0.00038785,120]
[393356051,1762517373995,517.38904697,0.00038785,120]
[393356052,1762517374034,-159.61,0.00015197,2]
[393356053,1762517374055,-159.61,0.00015792,2]
[393356054,1762517408788,-159.61,0.00016386,2]
[393356055,1762517413927,-257.33364253,0.00016857,2]
[393356069,1762517431989,-26.25769475,0.00016915,2]
[393356070,1762517431999,-1000.0,0.00016942,2]
[393356071,1762517432009,-159.61,0.0001698,2]
[393356072,1762517432018,-250.0,0.00017,2]
[393356073,1762517432027,-181.0,0.00017,2]
[393356074,1762517432036,-1852.42,0.00017191,2]
[393356075,1762517432046,-323.16,0.00017191,2]
[393356076,1762517432056,-166.67,0.00017568,2]
[393356077,1762517432065,-1200.0,0.00017713,2]
[393356078,1762517432076,-893.58488772,0.00017714,2]
[393356079,1762517432085,-152.07,0.00017745,2]
[393356080,1762517432095,-697.68676596,0.00017773,2]
[393356081,1762517432106,-300.0,0.00017788,2]
[393356082,1762517432115,-300.0,0.00017788,2]
[393356083,1762517432124,-1200.0,0.00017789,2]
[393356084,1762517432134,-358.85,0.00017793,2]
[393356085,1762517432144,-2500.0,0.000178,2]
[393356086,1762517432154,-1000.0,0.000178,2]
[393356087,1762517432163,-550.0,0.00017872,2]
[393356088,1762517432176,-500.0,0.00017873,2]
[393356089,1762517432186,-11109.26522556,0.00017873,2]
[393356090,1762517432195,-364.26220572,0.00017873,2]
[393356091,1762517432205,-1000.0,0.00017889,2]
[393356092,1762517432214,-5000.0,0.00017889,2]
[393356093,1762517432224,-151.0,0.00017889,2]
[393356094,1762517432233,-151.0,0.00017889,2]
[393356095,1762517432242,-151.0,0.00017889,2]
[393356096,1762517432251,-151.0,0.00017889,2]
[393356097,1762517432261,-151.0,0.00017889,2]
[393356099,1762517432270,-151.0,0.00017889,2]
[393356101,1762517432280,-151.0,0.00017889,2]
[393356103,1762517432289,-151.0,0.00017889,2]
[393356105,1762517432299,-151.0,0.00017889,2]
[393356106,1762517432308,-151.0,0.00017889,2]
[393356107,1762517432318,-81.44151203,0.00017889,2]
[393356108,1762517432330,-69.55848797,0.00017889,2]
[393356109,1762517432340,-151.0,0.00017889,2]
[393356110,1762517432350,-151.0,0.00017889,2]
[393356111,1762517432578,-151.0,0.00017889,2]
[393356112,1762517432589,-151.0,0.00017889,2]
[393356113,1762517432598,-81.22961258,0.00017889,2]
[393356114,1762517432646,-69.77038742,0.00017889,2]
[393356115,1762517432655,-151.0,0.00017889,2]
[393356116,1762517432666,-151.0,0.00017889,2]
[393356117,1762517432675,-151.0,0.00017889,2]
[393356118,1762517432684,-151.0,0.00017889,2]
[393356119,1762517432694,-151.0,0.00017897,2]
[393356120,1762517432703,-700.66516693,0.00017898,2]
[393356124,1762517437832,-299.33483307,0.00017898,2]
[393356125,1762517437842,-1000.0,0.00017899,2]
[393356126,1762517437851,-167.197,0.00017899,2]
[393356127,1762517437861,-389.90216693,0.00017899,2]
[393356128,1762517437887,-3671.57683307,0.00017899,2]
[393356129,1762517437899,-261.03644046,0.00017899,2]
[393356130,1762517437913,-177.73913577,0.00017899,2]
[393356131,1762517437923,-500.0,0.00017899,2]
[393356132,1762517437932,-500.0,0.00017899,2]
[393356133,1762517437942,-154.88640384,0.00017899,2]
[393356134,1762517437951,-5234.76118686,0.000179,2]
[393356135,1762517437963,-500.78466187,0.000179,2]
[393356136,1762517437994,-785.85113026,0.000179,2]
[393356188,1762517441989,-22047.56850284,0.000179,2]
[393356189,1762517442043,-745.01559428,0.000179,2]
[393356190,1762517442054,-848.56311053,0.000179,2]
[393356191,1762517442066,-6577.8,0.000179,2]
[393356192,1762517442076,-1360.97879634,0.000179,2]
[393356193,1762517442087,-297.39712197,0.000179,2]
[393356194,1762517442099,-2011.8157059,0.000179,2]
[393356195,1762517442169,-3268.30000001,0.000179,2]
[393356196,1762517442180,-1950.0,0.000179,2]
[393356197,1762517442191,-887.95434531,0.000179,2]
[393356198,1762517442214,-327.84001672,0.000179,2]
[393356210,1762517443061,-16331.62959316,0.000179,2]
[393356211,1762517443117,-641.55688958,0.000179,2]
[393356221,1762517446384,-1322.58,0.000179,2]
[393356254,1762517844453,541.55379357,0.00038785,120]
[393356255,1762518233136,-166.66,0.00016207,2]
[393356256,1762518238884,-166.66,0.00016549,2]
[393356257,1762518247494,-166.66,0.0001689,2]
[393356258,1762518264518,-193.32865562,0.00016909,2]
[393356259,1762518264540,-2499.6,0.00016928,2]
[393356260,1762518264562,-1127.21,0.0001698,2]
[393356261,1762518272546,-508.41,0.0001706,2]
[393356262,1762518272567,-357.1,0.0001706,2]
[393356263,1762518272588,-200.0,0.0001706,2]
[393356308,1762518632199,-309.0,0.00016861,2]
[393356309,1762518632209,-1559.97794623,0.00016861,2]
[393356310,1762518632220,-1191.02205377,0.00016861,2]
[393356311,1762518632230,-150.0,0.00016887,2]
[393356312,1762518632239,-119.43325241,0.00017005,2]
[393356313,1762518632262,-717.99160486,0.00017005,2]
[393356314,1762518632274,-16604.43514273,0.00017005,2]
[393356315,1762518632284,-166.66,0.00017231,2]
[393356316,1762518632296,-166.66,0.00017572,2]
[393356317,1762518632306,-300.0,0.00017698,2]
[393356318,1762518632315,-1200.0,0.00017698,2]
[393356319,1762518632326,-300.0,0.00017698,2]
[393356320,1762518632336,-83.0672133,0.00017699,2]
[393356321,1762518632347,-466.9327867,0.00017699,2]
[393356322,1762518632357,-300.0,0.00017699,2]
[393356323,1762518632367,-316.88907546,0.000177,2]
[393356324,1762518632376,-1000.0,0.000177,2]
[393356325,1762518632385,-359.59443656,0.000177,2]
[393356326,1762518632396,-334.33830891,0.000177,2]
[393356330,1762518632423,-574.14830098,0.000177,2]
[393356331,1762518632434,-301.14,0.000177,2]
[393356332,1762518632445,-977.3327285,0.000177,2]
[393356333,1762518632457,-6487.67412505,0.000177,2]
[393356334,1762518632467,-2500.0,0.000177,2]
[393356335,1762518632477,-3293.13545949,0.000177,2]
[393356338,1762518632501,-1706.86454051,0.000177,2]
[393356340,1762518632510,-500.0,0.00017772,2]
[393356341,1762518632519,-223.76629074,0.00017772,2]
[393356343,1762518632530,-276.23370926,0.00017772,2]
[393356344,1762518632539,-500.0,0.00017772,2]
[393356346,1762518632548,-424.91762688,0.00017772,2]
[393356347,1762518632558,-500.0,0.00017773,2]
[393356348,1762518632567,-500.0,0.00017773,2]
[393356349,1762518632579,-502.54057635,0.00017773,2]
[393356350,1762518632588,-500.0,0.00017773,2]
[393356351,1762518632597,-500.0,0.00017773,2]
[393356352,1762518632606,-1000.0,0.00017795,2]
[393356353,1762518632615,-188.62,0.00017796,2]
[393356354,1762518632625,-14294.88,0.00017796,2]
[393356355,1762518632634,-22183.76,0.00017796,2]
[393356356,1762518632643,-9999.99,0.00017796,2]
[393356357,1762518632653,-182.72550833,0.00017799,2]
[393356358,1762518632663,-500.0,0.00017799,2]
[393356359,1762518632672,-500.0,0.00017799,2]
[393356360,1762518632681,-500.0,0.00017799,2]
[393356361,1762518632691,-16401.4017,0.000178,2]
[393356362,1762518632700,-1000.0,0.000178,2]
[393356363,1762518632709,-75596.3782629,0.000178,2]
[393356364,1762518632720,-19653.02090361,0.000178,2]
[393356365,1762518632731,-102850.87776611,0.000178,2]
[393356371,1762518638089,-3214.00076351,0.000178,2]
[393356372,1762518638101,-20684.10168485,0.000178,2]
[393356373,1762518638113,-5576.66169727,0.000178,2]
[393356374,1762518638125,-359.875385,0.000178,2]
[393356375,1762518638136,-639.124615,0.000178,2]
[393356376,1762518638148,-191425.95892175,0.000178,2]
[393356377,1762518638158,-500.0,0.00017808,2]
[393356378,1762518638167,-29241.0296392,0.00017834,2]
[393356379,1762518638177,-10229.3241348,0.00017834,2]
[393356380,1762518638186,-318.06,0.00017863,2]
[393356381,1762518638196,-500.0,0.00017873,2]
[393356382,1762518638205,-500.0,0.00017873,2]
[393356383,1762518638215,-500.0,0.00017873,2]
[393356384,1762518638225,-500.0,0.00017873,2]
[393356385,1762518638235,-500.0,0.00017873,2]
[393356386,1762518638244,-500.0,0.00017873,2]
[393356387,1762518638254,-500.0,0.00017873,2]
[393356388,1762518638263,-500.0,0.00017873,2]
[393356389,1762518638273,-500.0,0.00017873,2]
[393356390,1762518638282,-500.0,0.00017873,2]
[393356391,1762518638292,-510.5905813,0.00017873,2]
[393356392,1762518638305,-500.0,0.00017873,2]
[393356394,1762518638315,-510.55136191,0.00017873,2]
[393356395,1762518638326,-500.0,0.00017873,2]
[393356396,1762518638339,-500.0,0.00017873,2]
[393356397,1762518638349,-500.0,0.00017873,2]
[393356398,1762518638361,-500.0,0.00017873,2]
[393356400,1762518638372,-500.0,0.00017873,2]
[393356401,1762518638383,-500.0,0.00017873,2]
[393356403,1762518638393,-151.0,0.00017888,2]
[393356405,1762518638403,-151.0,0.00017888,2]
[393356407,1762518638413,-151.0,0.00017888,2]
[393356409,1762518638423,-151.0,0.00017888,2]
[393356410,1762518638433,-151.0,0.00017888,2]
[393356411,1762518638442,-151.0,0.00017888,2]
[393356413,1762518638452,-151.0,0.00017888,2]
[393356414,1762518638462,-151.0,0.00017888,2]
[393356415,1762518638472,-151.0,0.00017888,2]
[393356416,1762518638482,-151.0,0.00017888,2]
[393356417,1762518638492,-152.05547154,0.00017888,2]
[393356418,1762518638503,-138197.5596134,0.00017891,2]
[393356419,1762518638514,-446.38118964,0.00017893,2]
[393356420,1762518638525,-1858.5477154,0.00017899,2]
[393356421,1762518638537,-866.1890569,0.00017899,2]
[393356422,1762518638547,-71221.6739761,0.00017899,2]
[393356423,1762518638558,-28438.7850065,0.00017899,2]
[393356424,1762518638568,-8040.7318959,0.00017899,2]
[393356425,1762518638582,-500.0,0.00017899,2]
[393356426,1762518638592,-500.0,0.00017899,2]
[393356427,1762518638603,-67478.3744951,0.00017899,2]
[393356428,1762518638613,-151.0,0.00017899,2]
[393356429,1762518638633,-151.000008,0.00017899,2]
[393356430,1762518638643,-151.0,0.00017899,2]
[393356431,1762518638653,-151.0,0.00017899,2]
[393356432,1762518638663,-271.678733,0.00017899,2]
[393356433,1762518638674,-271.678733,0.00017899,2]
[393356434,1762518638684,-154.619845,0.00017899,2]
[393356435,1762518638694,-271.678733,0.00017899,2]
[393356436,1762518638704,-151.0,0.00017899,2]
[393356437,1762518638715,-271.678733,0.00017899,2]
[393356438,1762518638725,-151.0,0.00017899,2]
[393356439,1762518638736,-151.0,0.00017899,2]
[393356440,1762518638746,-170.209544,0.00017899,2]
[393356441,1762518638757,-151.0,0.00017899,2]
[393356442,1762518638767,-151.0,0.00017899,2]
[393356443,1762518638778,-151.0,0.00017899,2]
[393356444,1762518638788,-151.0,0.00017899,2]
[393356445,1762518638798,-151.0,0.00017899,2]
[393356446,1762518638808,-151.0,0.00017899,2]
[393356447,1762518638818,-151.0,0.00017899,2]
[393356448,1762518638832,-151.0,0.00017899,2]
[393356449,1762518638842,-151.0,0.00017899,2]
[393356450,1762518638853,-151.0,0.00017899,2]
[393356451,1762518638863,-300.658385,0.00017899,2]
[393356452,1762518638874,-151.0,0.00017899,2]
[393356453,1762518638884,-151.0,0.00017899,2]
[393356454,1762518638895,-151.0,0.00017899,2]
[393356455,1762518638906,-1025.132647,0.00017899,2]
[393356456,1762518638916,-151.0,0.00017899,2]
[393356457,1762518638926,-1025.132647,0.00017899,2]
[393356458,1762518638937,-1025.132647,0.00017899,2]
[393356459,1762518638947,-1025.132647,0.00017899,2]
[393356460,1762518638957,-154.948938,0.00017899,2]
[393356461,1762518638967,-155.267409,0.00017899,2]
[393356462,1762518638976,-163.106762,0.00017899,2]
[393356463,1762518638990,-151.0,0.00017899,2]
[393356464,1762518639000,-151.609357,0.00017899,2]
[393356465,1762518639010,-151.0,0.00017899,2]
[393356466,1762518639019,-151.0,0.00017899,2]
[393356467,1762518639029,-152.888891,0.00017899,2]
[393356468,1762518639039,-151.0,0.00017899,2]
[393356469,1762518639050,-156.133342,0.00017899,2]
[393356470,1762518639060,-151.0,0.00017899,2]
[393356471,1762518639069,-156.133342,0.00017899,2]
[393356472,1762518639084,-156.133342,0.00017899,2]
[393356473,1762518639095,-156.133342,0.00017899,2]
[393356474,1762518639106,-151.0,0.00017899,2]
[393356475,1762518639117,-151.0,0.00017899,2]
[393356476,1762518639127,-151.0,0.00017899,2]
[393356477,1762518639138,-151.0,0.00017899,2]
[393356478,1762518639149,-151.0,0.00017899,2]
[393356479,1762518639160,-151.0,0.00017899,2]
[393356480,1762518639171,-151.0,0.00017899,2]
[393356481,1762518639184,-151.0,0.00017899,2]
[393356482,1762518639195,-455.158256,0.00017899,2]
[393356483,1762518639205,-151.0,0.00017899,2]
[393356484,1762518639215,-455.158256,0.00017899,2]
[393356485,1762518639226,-159.621312,0.00017899,2]
[393356486,1762518639236,-455.158256,0.00017899,2]
[393356487,1762518639246,-155.843168,0.00017899,2]
[393356488,1762518639256,-455.158256,0.00017899,2]
[393356489,1762518639266,-500.0,0.00017899,2]
[393356490,1762518639281,-151.0,0.00017899,2]
[393356491,1762518639292,-368.375632,0.00017899,2]
[393356492,1762518639302,-368.375632,0.00017899,2]
[393356493,1762518639312,-3451.281288,0.00017899,2]
[393356494,1762518639322,-368.375632,0.00017899,2]
[393356495,1762518639337,-3451.281288,0.00017899,2]
[393356496,1762518639347,-368.375632,0.00017899,2]
[393356497,1762518639356,-3451.281288,0.00017899,2]
[393356498,1762518639366,-3451.281288,0.00017899,2]
[393356499,1762518639376,-151.0,0.00017899,2]
[393356500,1762518639389,-158.638505,0.00017899,2]
[393356501,1762518639399,-151.0,0.00017899,2]
[393356502,1762518639410,-151.0,0.00017899,2]
[393356503,1762518639419,-151.0,0.00017899,2]
[393356504,1762518639429,-151.0,0.00017899,2]
[393356505,1762518639439,-1630.140865,0.00017899,2]
[393356506,1762518639448,-151.0,0.00017899,2]
[393356507,1762518639459,-151.0,0.00017899,2]
[393356508,1762518639469,-151.0,0.00017899,2]
[393356509,1762518639479,-1630.140865,0.00017899,2]
[393356510,1762518639488,-151.0,0.00017899,2]
[393356511,1762518639498,-151.0,0.00017899,2]
[393356512,1762518639508,-296.415688,0.00017899,2]
[393356513,1762518639518,-1630.140865,0.00017899,2]
[393356514,1762518639528,-151.0,0.00017899,2]
[393356515,1762518639538,-151.0,0.00017899,2]
[393356516,1762518639548,-1630.140865,0.00017899,2]
[393356517,1762518639558,-151.0,0.00017899,2]
[393356518,1762518639569,-1000.0,0.000179,2]
[393356519,1762518639580,-1000.0,0.000179,2]
[393356520,1762518639594,-1000.0,0.000179,2]
[393356521,1762518639604,-1000.0,0.000179,2]
[393356522,1762518639615,-1000.0,0.000179,2]
[393356523,1762518639626,-1000.0,0.000179,2]
[393356524,1762518639637,-1000.0,0.000179,2]
[393356525,1762518639648,-1000.0,0.000179,2]
[393356526,1762518639658,-1000.0,0.000179,2]
[393356527,1762518639668,-1000.0,0.000179,2]
[393356528,1762518639678,-1000.0,0.000179,2]
[393356529,1762518639687,-154.047,0.000179,2]
[393356530,1762518639697,-152.0,0.000179,2]
[393356531,1762518639707,-1391.75150663,0.000179,2]
[393356532,1762518639717,-152.0,0.000179,2]
[393356533,1762518639727,-1241.0,0.000179,2]
[393356534,1762518639736,-152.0,0.000179,2]
[393356535,1762518639746,-947.45453968,0.000179,2]
[393356536,1762518639756,-826.0,0.000179,2]
[393356537,1762518639765,-240.31495822,0.000179,2]
[393356538,1762518639778,-151.0,0.000179,2]
[393356539,1762518639788,-151.0,0.000179,2]
[393356540,1762518639797,-151.0,0.000179,2]
[393356541,1762518639807,-151.0,0.000179,2]
[393356542,1762518639817,-151.0,0.000179,2]
[393356543,1762518639830,-151.0,0.000179,2]
[393356544,1762518639839,-151.0,0.000179,2]
[393356545,1762518639850,-151.0,0.000179,2]
[393356546,1762518639859,-151.0,0.000179,2]
[393356547,1762518639869,-151.0,0.000179,2]
[393356548,1762518639879,-151.0,0.000179,2]
[393356549,1762518639888,-151.0,0.000179,2]
[393356550,1762518639898,-151.0,0.000179,2]
[393356551,1762518639909,-151.0,0.000179,2]
[393356552,1762518639919,-151.0,0.000179,2]
[393356553,1762518639929,-151.0,0.000179,2]
[393356554,1762518639939,-151.0,0.000179,2]
[393356555,1762518639950,-151.0,0.000179,2]
[393356556,1762518639959,-151.0,0.000179,2]
[393356557,1762518639969,-151.0,0.000179,2]
[393356558,1762518639981,-151.0,0.000179,2]
[393356559,1762518639991,-151.0,0.000179,2]
[393356560,1762518640001,-151.0,0.000179,2]
[393356561,1762518640011,-151.0,0.000179,2]
[393356562,1762518640020,-151.0,0.000179,2]
[393356564,1762518640030,-151.0,0.000179,2]
[393356566,1762518640040,-151.0,0.000179,2]
[393356567,1762518640050,-151.0,0.000179,2]
[393356568,1762518640059,-151.0,0.000179,2]
[393356569,1762518640068,-151.0,0.000179,2]
[393356570,1762518640081,-151.0,0.000179,2]
[393356571,1762518640091,-151.0,0.000179,2]
[393356572,1762518640100,-151.0,0.000179,2]
[393356573,1762518640110,-151.0,0.000179,2]
[393356574,1762518640119,-151.0,0.000179,2]
[393356575,1762518640128,-151.0,0.000179,2]
[393356576,1762518640138,-151.0,0.000179,2]
[393356577,1762518640147,-151.0,0.000179,2]
[393356578,1762518640157,-151.0,0.000179,2]
[393356579,1762518640166,-151.0,0.000179,2]
[393356580,1762518640176,-151.0,0.000179,2]
[393356581,1762518640185,-151.0,0.000179,2]
[393356582,1762518640195,-151.0,0.000179,2]
[393356583,1762518640204,-151.0,0.000179,2]